lending/lending_fUSD_20240112
["ID","MTS","AMOUNT","RATE_DAILY","PERIOD"]
[311329639,1705063872808,-835.12,0.0002314,2]
[311329640,1705063872818,-1018.72,0.0002314,2]
[311329641,1705063872828,-500.0,0.0002314,2]
[311329642,1705063872837,-500.0,0.0002314,2]
[311329643,1705063872847,-500.0,0.0002314,2]
[311329644,1705063872856,-500.0,0.0002314,2]
[311329645,1705063872865,-500.0,0.0002314,2]
[311329646,1705063872875,-500.0,0.0002314,2]
[311329647,1705063872885,-500.0,0.0002314,2]
[311329648,1705063872894,-500.0,0.0002314,2]
[311329649,1705063872904,-1257.65,0.0002314,2]
[311329650,1705063872914,-1312.63,0.0002314,2]
[311329651,1705063872923,-500.0,0.0002314,2]
[311329652,1705063872934,-500.0,0.0002314,2]
[311329653,1705063872943,-511.76,0.0002314,2]
[311329654,1705063872953,-500.0,0.0002314,2]
[311329655,1705063872965,-500.0,0.0002314,2]
[311329656,1705063872975,-427.58161664,0.0002314,2]
[311329657,1705063872984,-500.0,0.0002314,2]
[311329658,1705063872995,-500.0,0.0002314,2]
[311329659,1705063873005,-500.0,0.0002314,2]
[311329660,1705063873015,-500.0,0.0002314,2]
[311329661,1705063873025,-500.0,0.0002314,2]
[311329662,1705063873034,-500.0,0.0002314,2]
[311329663,1705063873044,-500.0,0.0002314,2]
[311329664,1705063873054,-500.0,0.0002314,2]
[311329665,1705063873063,-151.6168186,0.0002314,2]
[311329666,1705063873072,-500.0,0.0002314,2]
[311329667,1705063873081,-500.0,0.0002314,2]
[311329668,1705063873091,-500.0,0.0002314,2]
[311329669,1705063873100,-539.08,0.0002314,2]
[311329670,1705063873109,-500.0,0.0002314,2]
[311329671,1705063873119,-1320.71,0.0002314,2]
[311329672,1705063873128,-500.0,0.0002314,2]
[311329673,1705063873137,-500.0,0.0002314,2]
[311329674,1705063873147,-500.0,0.0002314,2]
[311329675,1705063873157,-550.16145307,0.0002314,2]
[311329676,1705063873166,-500.0,0.0002314,2]
[311329677,1705063873174,-500.0,0.0002314,2]
[311329678,1705063873185,-969.0,0.0002314,2]
[311329679,1705063873194,-736.76,0.0002314,2]
[311329680,1705063873204,-500.0,0.0002314,2]
[311329681,1705063873213,-500.0,0.0002314,2]
[311329682,1705063873222,-500.0,0.0002314,2]
[311329683,1705063873231,-500.0,0.0002314,2]
[311329684,1705063873243,-500.0,0.0002314,2]
[311329685,1705063873252,-500.0,0.0002314,2]
[311329686,1705063873261,-500.0,0.0002314,2]
[311329687,1705063873271,-1026.07,0.0002314,2]
[311329688,1705063873280,-913.29,0.0002314,2]
[311329689,1705063873290,-500.0,0.0002314,2]
[311329690,1705063873300,-500.0,0.0002314,2]
[311329691,1705063873308,-500.0,0.0002314,2]
[311329692,1705063873318,-721.94,0.0002314,2]
[311329693,1705063873327,-282.38,0.0002314,2]
[311329694,1705063873337,-500.0,0.0002314,2]
[311329695,1705063873346,-512715.82464027,0.00023141,2]
[311329696,1705063873355,-500.0,0.00023141,2]
[311329697,1705063873364,-500.0,0.00023142,2]
[311329698,1705063873374,-525.05159782,0.00023142,2]
[311329699,1705063873383,-552.19797645,0.00023142,2]
[311329700,1705063873392,-489.17985594,0.00023142,2]
[311329701,1705063873401,-500.0,0.00023142,2]
[311329702,1705063873410,-500.0,0.00023142,2]
[311329703,1705063873420,-500.0,0.00023142,2]
[311329704,1705063873429,-500.0,0.00023142,2]
[311329705,1705063873439,-14720.0,0.00023151,2]
[311329706,1705063873448,-162.16,0.00023173,2]
[311329707,1705063873457,-228.37,0.00023214,2]
[311329708,1705063873466,-191.59750759,0.00023246,2]
[311329709,1705063873475,-200.0,0.00023248,2]
[311329710,1705063873485,-800.0,0.00023248,2]
[311329711,1705063873496,-162.87,0.00023322,2]
[311329712,1705063873506,-228.37,0.00023329,2]
[311329713,1705063873515,-4223.75,0.00023347,2]
[311329714,1705063873525,-500.0,0.00023347,2]
[311329715,1705063873535,-1122.89,0.00023347,2]
[311329716,1705063873544,-945.58,0.00023347,2]
[311329717,1705063873553,-620.52,0.00023347,2]
[311329718,1705063873563,-703.0,0.00023347,2]
[311329719,1705063873572,-1331.16,0.00023347,2]
[311329720,1705063873581,-3318.66,0.00023347,2]
[311329721,1705063873591,-500.0,0.00023413,2]
[311329722,1705063873600,-500.0,0.00023413,2]
[311329723,1705063873609,-500.0,0.00023413,2]
[311329724,1705063873619,-500.0,0.00023413,2]
[311329725,1705063873628,-500.0,0.00023413,2]
[311329726,1705063873638,-218.43,0.00023413,2]
[311329727,1705063873647,-500.0,0.00023413,2]
[311329728,1705063873657,-500.0,0.00023413,2]
[311329729,1705063873666,-500.0,0.00023413,2]
[311329730,1705063873675,-500.0,0.00023413,2]
[311329731,1705063873684,-522.68556659,0.00023413,2]
[311329732,1705063873693,-500.0,0.00023413,2]
[311329733,1705063873702,-500.0,0.00023413,2]
[311329734,1705063873712,-500.0,0.00023413,2]
[311329735,1705063873721,-500.0,0.00023413,2]
[311329736,1705063873730,-500.0,0.00023413,2]
[311329737,1705063873741,-500.0,0.00023413,2]
[311329738,1705063873751,-528.10580106,0.00023413,2]
[311329739,1705063873760,-440.64035497,0.00023413,2]
[311329740,1705063873770,-500.0,0.00023413,2]
[311329741,1705063873779,-526.44,0.00023413,2]
[311329742,1705063873788,-500.0,0.00023413,2]
[311329743,1705063873805,-500.0,0.00023413,2]
[311329744,1705063873818,-1074.41,0.00023413,2]
[311329745,1705063873827,-500.0,0.00023413,2]
[311329746,1705063873836,-500.0,0.00023413,2]
[311329747,1705063873846,-626.59321092,0.00023413,2]
[311329748,1705063873856,-500.0,0.00023413,2]
[311329749,1705063873865,-4313.59,0.00023413,5]
[311329750,1705063873875,-336.50256151,0.00023413,2]
[311329751,1705063873884,-500.0,0.00023413,2]
[311329752,1705063873893,-527.61185305,0.00023413,2]
[311329753,1705063873902,-500.0,0.00023413,2]
[311329754,1705063873912,-2141.96,0.00023413,2]
[311329755,1705063873922,-763.76,0.00023413,2]
[311329756,1705063873931,-500.0,0.00023413,2]
[311329757,1705063873941,-13400.37,0.00023413,2]
[311329758,1705063873951,-156.60643762,0.00023413,2]
[311329759,1705063873960,-500.0,0.00023413,2]
[311329760,1705063873971,-500.0,0.00023413,2]
[311329761,1705063873981,-4452.05,0.00023413,2]
[311329762,1705063873992,-500.0,0.00023413,2]
[311329763,1705063874005,-500.0,0.00023413,2]
[311329764,1705063874014,-500.0,0.00023413,2]
[311329765,1705063874024,-5995.38,0.00023413,2]
[311329766,1705063874038,-500.0,0.00023413,2]
[311329767,1705063874048,-531.34787038,0.00023413,2]
[311329768,1705063874058,-398.16,0.00023413,2]
[311329769,1705063874071,-500.0,0.00023413,2]
[311329770,1705063874081,-500.0,0.00023413,2]
[311329771,1705063874093,-500.0,0.00023413,2]
[311329772,1705063874106,-966.26,0.00023413,2]
[311329773,1705063874115,-500.0,0.00023413,2]
[311329774,1705063874125,-500.0,0.00023413,2]
[311329775,1705063874135,-500.0,0.00023413,2]
[311329776,1705063874144,-500.0,0.00023413,2]
[311329777,1705063874161,-539.25,0.00023413,2]
[311329778,1705063874172,-660.56,0.00023413,2]
[311329779,1705063874182,-500.0,0.00023413,2]
[311329780,1705063874200,-500.0,0.00023413,2]
[311329781,1705063874209,-500.0,0.00023413,2]
[311329782,1705063874229,-500.0,0.00023413,2]
[311329783,1705063874242,-500.0,0.00023413,2]
[311329784,1705063874252,-568.04,0.00023413,2]
[311329785,1705063874262,-349.52427504,0.00023413,2]
[311329786,1705063874274,-1008.99,0.00023413,2]
[311329787,1705063874284,-615.37,0.00023413,2]
[311329788,1705063874294,-500.0,0.00023413,2]
[311329789,1705063874303,-797.96,0.00023413,2]
[311329790,1705063874321,-500.0,0.00023413,2]
[311329791,1705063874339,-500.0,0.00023413,2]
[311329792,1705063874349,-1371.29,0.00023413,2]
[311329793,1705063874359,-500.0,0.00023413,2]
[311329794,1705063874369,-686.32,0.00023413,2]
[311329795,1705063874617,-500.0,0.00023413,2]
[311329796,1705063874627,-500.0,0.00023413,2]
[311329797,1705063874637,-500.0,0.00023413,2]
[311329798,1705063874650,-3981.87,0.00023413,2]
[311329799,1705063874659,-465.16633418,0.00023413,2]
[311329800,1705063874670,-500.0,0.00023413,2]
[311329801,1705063874686,-584.53,0.00023413,2]
[311329802,1705063874697,-500.0,0.00023413,2]
[311329803,1705063874706,-506.67,0.00023413,2]
[311329804,1705063874715,-280.01886588,0.00023413,2]
[311329805,1705063874725,-610.53,0.00023413,2]
[311329806,1705063874734,-500.0,0.00023413,2]
[311329807,1705063874745,-766.02,0.00023413,2]
[311329808,1705063874755,-500.0,0.00023413,2]
[311329809,1705063874765,-500.0,0.00023413,2]
[311329810,1705063874775,-500.0,0.00023413,2]
[311329811,1705063874784,-621.74,0.00023413,2]
[311329812,1705063874794,-500.0,0.00023413,2]
[311329813,1705063874804,-4639.19,0.00023413,2]
[311329814,1705063874814,-2752.63,0.00023413,2]
[311329815,1705063874824,-500.0,0.00023413,2]
[311329816,1705063874835,-500.0,0.00023413,2]
[311329817,1705063874844,-500.0,0.00023413,2]
[311329818,1705063874854,-1378.37,0.00023413,2]
[311329819,1705063874863,-500.0,0.00023413,2]
[311329820,1705063874873,-500.0,0.00023413,2]
[311329821,1705063874883,-513.42708976,0.00023413,2]
[311329822,1705063874894,-500.0,0.00023413,2]
[311329823,1705063874904,-922.86,0.00023413,2]
[311329824,1705063874914,-500.0,0.00023413,2]
[311329825,1705063874923,-500.0,0.00023413,2]
[311329826,1705063874932,-500.0,0.00023413,2]
[311329827,1705063874942,-500.0,0.00023413,2]
[311329828,1705063874952,-712.79,0.00023413,2]
[311329829,1705063874962,-304.57492237,0.00023413,2]
[311329830,1705063874972,-500.0,0.00023413,2]
[311329831,1705063874981,-624.87,0.00023413,2]
[311329832,1705063874995,-507.07222607,0.00023413,2]
[311329833,1705063875006,-500.0,0.00023413,2]
[311329834,1705063875015,-811.47,0.00023413,2]
[311329835,1705063875025,-214.62,0.00023413,2]
[311329836,1705063875035,-500.0,0.00023413,2]
[311329837,1705063875045,-500.0,0.00023413,2]
[311329838,1705063875055,-500.0,0.00023413,2]
[311329839,1705063875065,-500.0,0.00023413,2]
[311329840,1705063875074,-500.0,0.00023413,2]
[311329841,1705063875084,-500.0,0.00023413,2]
[311329842,1705063875094,-6331.44,0.00023413,2]
[311329843,1705063875104,-625.89,0.00023413,2]
[311329844,1705063875115,-995.86,0.00023413,2]
[311329845,1705063875124,-652.82,0.00023413,2]
[311329846,1705063875134,-500.0,0.00023413,2]
[311329847,1705063875144,-500.0,0.00023413,2]
[311329848,1705063875154,-6343.23,0.00023413,2]
[311329849,1705063875164,-500.0,0.00023413,2]
[311329850,1705063875173,-1936.38,0.00023413,2]
[311329851,1705063875182,-500.0,0.00023413,2]
[311329852,1705063875193,-500.0,0.00023413,2]
[311329853,1705063875203,-500.0,0.00023413,2]
[311329854,1705063875213,-500.0,0.00023413,2]
[311329855,1705063875223,-538.63,0.00023413,2]
[311329856,1705063875233,-500.0,0.00023413,2]
[311329857,1705063875247,-530.12,0.00023413,2]
[311329858,1705063875257,-500.0,0.00023413,2]
[311329859,1705063875268,-500.0,0.00023413,2]
[311329860,1705063875278,-500.0,0.00023413,2]
[311329861,1705063875287,-905.93,0.00023413,2]
[311329862,1705063875296,-500.0,0.00023413,2]
[311329863,1705063875307,-500.0,0.00023413,2]
[311329864,1705063875317,-500.0,0.00023413,2]
[311329865,1705063875327,-500.0,0.00023413,2]
[311329866,1705063875338,-500.0,0.00023413,2]
[311329867,1705063875348,-504.83990643,0.00023413,2]
[311329868,1705063875358,-1330.98,0.00023413,2]
[311329869,1705063875369,-584.23,0.00023413,2]
[311329870,1705063875379,-1834.87,0.00023413,2]
[311329871,1705063875389,-500.0,0.00023413,2]
[311329872,1705063875398,-407.22120578,0.00023413,2]
[311329873,1705063875409,-2275.08,0.00023413,2]
[311329874,1705063875418,-3572.07,0.00023413,2]
[311329875,1705063875428,-558.34,0.00023413,2]
[311329876,1705063875438,-618.29681241,0.00023413,2]
[311329877,1705063875448,-500.0,0.00023413,2]
[311329878,1705063875457,-500.0,0.00023413,2]
[311329879,1705063875467,-1346.26,0.00023413,2]
[311329880,1705063875477,-1688.4,0.00023413,2]
[311329881,1705063875487,-1004.34,0.00023413,2]
[311329882,1705063875498,-500.0,0.00023413,2]
[311329883,1705063875508,-500.0,0.00023413,2]
[311329884,1705063875518,-598.68,0.00023413,2]
[311329885,1705063875527,-929.29,0.00023413,2]
[311329886,1705063875538,-500.0,0.00023413,2]
[311329887,1705063875549,-1187.5,0.00023413,2]
[311329888,1705063875559,-500.0,0.00023413,2]
[311329889,1705063875569,-500.0,0.00023413,2]
[311329890,1705063875579,-937.32,0.00023413,2]
[311329891,1705063875589,-513.62597754,0.00023413,2]
[311329892,1705063875598,-753.23,0.00023413,2]
[311329893,1705063875608,-507.51,0.00023413,2]
[311329894,1705063875619,-583.62967794,0.00023413,2]
[311329895,1705063875629,-500.0,0.00023413,2]
[311329896,1705063875638,-601.4,0.00023413,2]
[311329897,1705063875648,-500.0,0.00023414,2]
[311329898,1705063875658,-500.0,0.00023414,2]
[311329899,1705063875667,-500.0,0.00023414,2]
[311329900,1705063875676,-500.0,0.00023414,2]
[311329901,1705063875686,-500.0,0.00023414,2]
[311329902,1705063875696,-516.27729107,0.00023414,2]
[311329903,1705063875705,-500.0,0.00023414,2]
[311329904,1705063875715,-500.0,0.00023414,2]
[311329905,1705063875725,-500.0,0.00023414,2]
[311329906,1705063875734,-500.0,0.00023414,2]
[311329907,1705063875746,-500.0,0.00023414,2]
[311329908,1705063875756,-500.0,0.00023414,2]
[311329909,1705063875765,-500.0,0.00023414,2]
[311329910,1705063875775,-500.0,0.00023414,2]
[311329911,1705063875784,-500.0,0.00023414,2]
[311329912,1705063875794,-500.0,0.00023414,2]
[311329913,1705063875803,-500.0,0.00023414,2]
[311329914,1705063875812,-500.0,0.00023414,2]
[311329915,1705063875821,-500.0,0.00023414,2]
[311329916,1705063875831,-500.0,0.00023414,2]
[311329917,1705063875840,-522.02,0.00023414,2]
[311329918,1705063875849,-500.0,0.00023414,2]
[311329919,1705063875858,-500.0,0.00023414,2]
[311329920,1705063875867,-500.0,0.00023414,2]
[311329921,1705063875877,-500.0,0.00023414,2]
[311329922,1705063875886,-500.0,0.00023414,2]
[311329923,1705063875895,-500.0,0.00023414,2]
[311329924,1705063875905,-500.0,0.00023414,2]
[311329925,1705063875915,-500.0,0.00023414,2]
[311329926,1705063875924,-500.0,0.00023414,2]
[311329927,1705063875934,-193.3510244,0.00023414,2]
[311329928,1705063875944,-500.0,0.00023414,2]
[311329929,1705063875953,-500.0,0.00023414,2]
[311329930,1705063875963,-519.93297573,0.00023414,2]
[311329931,1705063875972,-160.63968596,0.00023414,2]
[311329932,1705063875982,-457.20594191,0.00023414,2]
[311329933,1705063875993,-500.0,0.00023414,2]
[311329934,1705063876003,-500.0,0.00023414,2]
[311329935,1705063876012,-500.0,0.00023414,2]
[311329936,1705063876022,-500.0,0.00023414,2]
[311329937,1705063876031,-500.0,0.00023414,2]
[311329938,1705063876041,-500.0,0.00023414,2]
[311329939,1705063876050,-500.0,0.00023414,2]
[311329940,1705063876059,-500.0,0.00023414,2]
[311329941,1705063876069,-500.0,0.00023414,2]
[311329942,1705063876079,-500.0,0.00023414,2]
[311329943,1705063876089,-500.0,0.00023414,2]
[311329944,1705063876098,-500.0,0.00023414,2]
[311329945,1705063876108,-2353.43,0.00023414,2]
[311329946,1705063876117,-534.3013381,0.00023414,2]
[311329947,1705063876127,-500.0,0.00023414,2]
[311329948,1705063876136,-500.0,0.00023414,2]
[311329949,1705063876146,-500.0,0.00023414,2]
[311329950,1705063876157,-500.0,0.00023414,2]
[311329951,1705063876166,-500.0,0.00023414,2]
[311329952,1705063876176,-500.0,0.00023414,2]
[311329953,1705063876187,-500.0,0.00023414,2]
[311329954,1705063876197,-500.0,0.00023414,2]
[311329955,1705063876207,-500.0,0.00023414,2]
[311329956,1705063876217,-500.0,0.00023414,2]
[311329957,1705063876227,-500.0,0.00023414,2]
[311329958,1705063876236,-500.0,0.00023414,2]
[311329959,1705063876250,-500.0,0.00023414,2]
[311329960,1705063876260,-500.0,0.00023414,2]
[311329961,1705063876270,-500.0,0.00023414,2]
[311329962,1705063876280,-569.30287232,0.00023414,2]
[311329963,1705063876289,-500.0,0.00023414,2]
[311329964,1705063876298,-500.0,0.00023414,2]
[311329965,1705063876308,-500.0,0.00023414,2]
[311329966,1705063876317,-511.70008269,0.00023414,2]
[311329967,1705063876327,-500.0,0.00023414,2]
[311329968,1705063876337,-397.29610437,0.00023414,2]
[311329969,1705063876346,-500.0,0.00023414,2]
[311329970,1705063876356,-762.84,0.00023414,2]
[311329971,1705063876365,-500.0,0.00023414,2]
[311329972,1705063876375,-500.0,0.00023414,2]
[311329973,1705063876384,-759.51,0.00023414,2]
[311329974,1705063876395,-500.0,0.00023414,2]
[311329975,1705063876405,-500.0,0.00023414,2]
[311329976,1705063876414,-500.0,0.00023414,2]
[311329977,1705063876424,-500.0,0.00023414,2]
[311329978,1705063876434,-500.0,0.00023414,2]
[311329979,1705063876444,-500.0,0.00023414,2]
[311329980,1705063876453,-500.0,0.00023414,2]
[311329981,1705063876463,-500.0,0.00023414,2]
[311329982,1705063876474,-250.0,0.00023414,2]
[311329983,1705063876484,-500.0,0.00023414,2]
[311329984,1705063876497,-500.0,0.00023414,2]
[311329985,1705063876507,-521.44283398,0.00023414,2]
[311329986,1705063876518,-500.0,0.00023414,2]
[311329987,1705063876529,-500.0,0.00023414,2]
[311329988,1705063876539,-500.0,0.00023414,2]
[311329989,1705063876554,-500.0,0.00023414,2]
[311329990,1705063876564,-500.0,0.00023414,2]
[311329991,1705063876574,-500.0,0.00023414,2]
[311329992,1705063876583,-500.0,0.00023414,2]
[311329993,1705063876593,-500.0,0.00023414,2]
[311329994,1705063876602,-281.25490331,0.00023414,2]
[311329995,1705063876612,-500.0,0.00023414,2]
[311329996,1705063876624,-500.0,0.00023414,2]
[311329997,1705063876634,-500.0,0.00023414,2]
[311329998,1705063876643,-500.0,0.00023414,2]
[311329999,1705063876652,-500.0,0.00023414,2]
[311330000,1705063876662,-500.0,0.00023414,2]
[311330001,1705063876671,-569.24,0.00023414,2]
[311330002,1705063876680,-500.0,0.00023414,2]
[311330003,1705063876689,-500.0,0.00023414,2]
[311330004,1705063876699,-500.0,0.00023414,2]
[311330005,1705063876708,-500.0,0.00023414,2]
[311330006,1705063876718,-500.0,0.00023414,2]
[311330007,1705063876728,-152.96,0.00023414,2]
[311330008,1705063876739,-500.0,0.00023414,2]
[311330009,1705063876753,-500.0,0.00023414,2]
[311330010,1705063876764,-288.30152607,0.00023414,2]
[311330011,1705063876774,-500.0,0.00023414,2]
[311330012,1705063876785,-500.0,0.00023414,2]
[311330013,1705063876794,-500.0,0.00023414,2]
[311330014,1705063876803,-500.0,0.00023414,2]
[311330015,1705063876813,-500.0,0.00023414,2]
[311330016,1705063876824,-500.0,0.00023414,2]
[311330017,1705063876833,-500.0,0.00023414,2]
[311330018,1705063876843,-500.0,0.00023414,2]
[311330019,1705063876853,-538.07,0.00023414,2]
[311330020,1705063876862,-510.55829342,0.00023414,2]
[311330021,1705063876871,-500.0,0.00023414,2]
[311330022,1705063876880,-654.77,0.00023414,2]
[311330023,1705063876890,-500.0,0.00023414,2]
[311330024,1705063876899,-500.0,0.00023414,2]
[311330025,1705063876908,-500.0,0.00023414,2]
[311330026,1705063876917,-500.0,0.00023414,2]
[311330027,1705063876926,-500.0,0.00023414,2]
[311330028,1705063876936,-1000.0,0.00023414,2]
[311330029,1705063877098,-500.0,0.00023414,2]
[311330030,1705063877107,-500.0,0.00023414,2]
[311330031,1705063877117,-280.71,0.00023414,2]
[311330032,1705063877127,-500.0,0.00023414,2]
[311330033,1705063877137,-500.0,0.00023414,2]
[311330034,1705063877147,-500.0,0.00023414,2]
[311330035,1705063877157,-500.0,0.00023414,2]
[311330036,1705063877166,-500.0,0.00023414,2]
[311330037,1705063877175,-500.0,0.00023414,2]
[311330038,1705063877184,-500.0,0.00023414,2]
[311330039,1705063877194,-500.0,0.00023414,2]
[311330040,1705063877203,-500.0,0.00023414,2]
[311330041,1705063877212,-500.0,0.00023414,2]
[311330042,1705063877221,-397.68651674,0.00023414,2]
[311330043,1705063877231,-535.86,0.00023414,2]
[311330044,1705063877243,-500.0,0.00023414,2]
[311330045,1705063877253,-2642.46,0.00023414,2]
[311330046,1705063877262,-500.0,0.00023414,2]
[311330047,1705063877272,-950.9,0.00023414,2]
[311330048,1705063877281,-500.0,0.00023414,2]
[311330049,1705063877290,-500.0,0.00023414,2]
[311330050,1705063877299,-500.0,0.00023414,2]
[311330051,1705063877309,-500.0,0.00023414,2]
[311330052,1705063877318,-500.0,0.00023414,2]
[311330053,1705063877328,-500.0,0.00023414,2]
[311330054,1705063877338,-536.71,0.00023414,2]
[311330055,1705063877347,-500.0,0.00023414,2]
[311330056,1705063877357,-500.0,0.00023414,2]
[311330057,1705063877366,-500.0,0.00023414,2]
[311330058,1705063877375,-500.0,0.00023414,2]
[311330059,1705063877385,-500.0,0.00023414,2]
[311330060,1705063877394,-500.0,0.00023414,2]
[311330061,1705063877403,-500.0,0.00023414,2]
[311330062,1705063877412,-693.32,0.00023414,2]
[311330063,1705063877422,-500.0,0.00023414,2]
[311330064,1705063877432,-500.0,0.00023414,2]
[311330065,1705063877441,-500.0,0.00023414,2]
[311330066,1705063877450,-363.43252416,0.00023414,2]
[311330067,1705063877460,-500.0,0.00023414,2]
[311330068,1705063877469,-500.0,0.00023414,2]
[311330069,1705063877478,-568.04,0.00023414,2]
[311330070,1705063877488,-312.09034173,0.00023414,2]
[311330071,1705063877499,-500.0,0.00023414,2]
[311330072,1705063877509,-500.0,0.00023414,2]
[311330073,1705063877519,-500.0,0.00023414,2]
[311330074,1705063877528,-500.0,0.00023414,2]
[311330075,1705063877538,-500.0,0.00023414,2]
[311330076,1705063877547,-328.60073377,0.00023414,2]
[311330077,1705063877557,-500.0,0.00023414,2]
[311330078,1705063877567,-500.0,0.00023414,2]
[311330079,1705063877577,-300.35631234,0.00023414,2]
[311330080,1705063877586,-580.01195304,0.00023414,2]
[311330081,1705063877596,-500.0,0.00023414,2]
[311330082,1705063877605,-500.0,0.00023414,2]
[311330083,1705063877614,-500.0,0.00023414,2]
[311330084,1705063877623,-500.0,0.00023414,2]
[311330085,1705063877632,-500.0,0.00023414,2]
[311330086,1705063877642,-500.0,0.00023414,2]
[311330087,1705063877651,-500.0,0.00023414,2]
[311330088,1705063877661,-500.0,0.00023414,2]
[311330089,1705063877670,-500.0,0.00023414,2]
[311330090,1705063877679,-500.0,0.00023414,2]
[311330091,1705063877688,-500.0,0.00023414,2]
[311330092,1705063877698,-500.0,0.00023414,2]
[311330093,1705063877707,-500.0,0.00023414,2]
[311330094,1705063877716,-500.0,0.00023414,2]
[311330095,1705063877726,-500.0,0.00023414,2]
[311330096,1705063877735,-500.0,0.00023414,2]
[311330097,1705063877746,-500.0,0.00023414,2]
[311330098,1705063877756,-500.0,0.00023414,2]
[311330099,1705063877765,-500.0,0.00023414,2]
[311330100,1705063877775,-500.0,0.00023414,2]
[311330101,1705063877784,-603.25,0.00023414,2]
[311330102,1705063877793,-500.0,0.00023414,2]
[311330103,1705063877803,-500.0,0.00023414,2]
[311330104,1705063877812,-500.0,0.00023414,2]
[311330105,1705063877821,-500.0,0.00023414,2]
[311330106,1705063877831,-500.0,0.00023414,2]
[311330107,1705063877840,-500.0,0.00023414,2]
[311330108,1705063877850,-500.0,0.00023414,2]
[311330109,1705063877859,-500.0,0.00023414,2]
[311330110,1705063877868,-500.0,0.00023414,2]
[311330111,1705063877877,-500.0,0.00023414,2]
[311330112,1705063877886,-500.0,0.00023414,2]
[311330113,1705063877895,-222.94,0.00023414,2]
[311330114,1705063877905,-500.0,0.00023414,2]
[311330115,1705063877914,-500.0,0.00023414,2]
[311330116,1705063877924,-500.0,0.00023414,2]
[311330117,1705063877934,-500.0,0.00023414,2]
[311330118,1705063877944,-500.0,0.00023414,2]
[311330119,1705063877953,-500.0,0.00023414,2]
[311330120,1705063877963,-500.0,0.00023414,2]
[311330121,1705063877972,-500.0,0.00023414,2]
[311330122,1705063877982,-500.0,0.00023414,2]
[311330123,1705063877993,-500.0,0.00023414,2]
[311330124,1705063878003,-500.0,0.00023414,2]
[311330125,1705063878014,-500.0,0.00023414,2]
[311330126,1705063878023,-285.61956422,0.00023414,2]
[311330127,1705063878032,-500.0,0.00023414,2]
[311330128,1705063878041,-539.64,0.00023414,2]
[311330129,1705063878050,-500.0,0.00023414,2]
[311330130,1705063878059,-500.0,0.00023414,2]
[311330131,1705063878068,-315.82,0.00023414,2]
[311330132,1705063878078,-500.0,0.00023414,2]
[311330133,1705063878088,-524.95951963,0.00023414,2]
[311330134,1705063878110,-376.42311637,0.00023414,2]
[311330135,1705063878127,-819.21,0.00023414,2]
[311330136,1705063878145,-500.0,0.00023414,2]
[311330137,1705063878168,-500.0,0.00023414,2]
[311330138,1705063878184,-500.0,0.00023414,2]